fUSD/lending_fUSD_20240426
["ID","MTS","AMOUNT","RATE_DAILY","PERIOD"]
[323642127,1714146692464,-603.94,0.00012914,2]
[323642128,1714146692480,-500.0,0.00012914,2]
[323642129,1714146692490,-2203.32,0.00012914,2]
[323642130,1714146692501,-741.55,0.00012914,2]
[323642131,1714146692511,-500.0,0.00012914,2]
[323642132,1714146692522,-707.05,0.00012914,2]
[323642133,1714146692533,-500.0,0.00012914,2]
[323642134,1714146692543,-500.0,0.00012914,2]
[323642135,1714146692554,-500.0,0.00012914,2]
[323642136,1714146692564,-500.0,0.00012914,2]
[323642137,1714146692576,-500.0,0.00012914,2]
[323642138,1714146692586,-1197.27,0.00012914,2]
[323642139,1714146692596,-525.11,0.00012914,2]
[323642140,1714146692607,-1151.01,0.00012914,2]
[323642141,1714146692617,-1089.37,0.00012914,2]
[323642142,1714146692627,-500.0,0.00012914,2]
[323642143,1714146692637,-500.0,0.00012914,2]
[323642144,1714146692648,-500.0,0.00012914,2]
[323642145,1714146692659,-535.73,0.00012914,2]
[323642146,1714146692669,-1314.57,0.00012914,2]
[323642147,1714146692679,-500.0,0.00012914,2]
[323642148,1714146692690,-500.0,0.00012914,2]
[323642149,1714146692700,-500.0,0.00012914,2]
[323642150,1714146692710,-1247.81,0.00012914,2]
[323642151,1714146692722,-500.0,0.00012914,2]
[323642152,1714146693013,-318.18,0.00012914,2]
[323642153,1714146693039,-731.33,0.00012914,2]
[323642154,1714146693049,-609.72,0.00012914,2]
[323642155,1714146693059,-500.0,0.00012914,2]
[323642156,1714146693068,-713.5,0.00012914,2]
[323642157,1714146693078,-577.85,0.00012914,2]
[323642158,1714146693087,-233.21,0.00012914,2]
[323642159,1714146693097,-500.0,0.00012914,2]
[323642160,1714146693106,-500.0,0.00012914,2]
[323642161,1714146693116,-500.0,0.00012914,2]
[323642162,1714146693126,-1867.18,0.00012914,2]
[323642163,1714146693136,-377.82,0.00012914,2]
[323642164,1714146693146,-500.0,0.00012914,2]
[323642165,1714146693156,-500.0,0.00012914,2]
[323642166,1714146693166,-1355.9,0.00012914,2]
[323642167,1714146693176,-638.8,0.00012914,2]
[323642168,1714146693185,-504.99803128,0.00012914,2]
[323642169,1714146693195,-603.07,0.00012914,2]
[323642170,1714146693204,-500.0,0.00012914,2]
[323642171,1714146693213,-500.0,0.00012914,2]
[323642172,1714146693225,-500.0,0.00012914,2]
[323642173,1714146693234,-500.0,0.00012914,2]
[323642174,1714146693244,-500.0,0.00012914,2]
[323642175,1714146693253,-1301.29,0.00012914,2]
[323642176,1714146693263,-500.0,0.00012914,2]
[323642177,1714146693273,-500.0,0.00012914,2]
[323642178,1714146693283,-500.0,0.00012914,2]
[323642179,1714146693293,-1375.84,0.00012914,2]
[323642180,1714146693304,-500.0,0.00012914,2]
[323642181,1714146693314,-297.51,0.00012914,2]
[323642182,1714146693324,-678.19,0.00012914,2]
[323642183,1714146693335,-500.0,0.00012914,2]
[323642184,1714146693345,-724.11,0.00012914,2]
[323642185,1714146693355,-594.9,0.00012914,2]
[323642186,1714146693365,-616.05,0.00012914,2]
[323642187,1714146693375,-500.0,0.00012914,2]
[323642188,1714146693386,-500.0,0.00012914,2]
[323642189,1714146693396,-1741.91,0.00012914,2]
[323642190,1714146693406,-500.0,0.00012914,2]
[323642191,1714146693418,-500.0,0.00012914,2]
[323642192,1714146693428,-645.35,0.00012914,2]
[323642193,1714146693438,-1642.19,0.00012914,2]
[323642194,1714146693447,-500.0,0.00012914,2]
[323642195,1714146693457,-500.0,0.00012914,2]
[323642196,1714146693469,-500.0,0.00012914,2]
[323642197,1714146693481,-877.55,0.00012914,2]
[323642198,1714146693491,-500.0,0.00012914,2]
[323642199,1714146693501,-1878.46,0.00012914,2]
[323642200,1714146693511,-500.0,0.00012914,2]
[323642201,1714146693521,-2626.11,0.00012914,2]
[323642202,1714146693531,-500.0,0.00012914,2]
[323642203,1714146693540,-500.0,0.00012914,2]
[323642204,1714146693553,-800.34,0.00012914,2]
[323642205,1714146693563,-500.0,0.00012914,2]
[323642206,1714146693573,-500.0,0.00012914,2]
[323642207,1714146693582,-514.0,0.00012986,2]
[323642208,1714146693592,-1342.0,0.00012986,2]
[323642209,1714146693602,-250000.0,0.0001299,2]
[323642210,1714146693611,-874.52333698,0.00012999,2]
[323642211,1714146693621,-2585619.18288786,0.00013,2]
[323642212,1714146693631,-3676538.90513747,0.00013,2]
[323642213,1714146693641,-316122.826279,0.00013,2]
[323642214,1714146693651,-2158348.41310121,0.00013,2]
[323642215,1714146693660,-651.95032468,0.00013,2]
[323642216,1714146693670,-522.05340994,0.00013,2]
[323642217,1714146693680,-1000.0,0.00013,3]
[323642218,1714146693690,-364.87,0.00013,2]
[323642219,1714146693699,-408.57511403,0.00013,2]
[323642220,1714146693709,-1530.0,0.00013,2]
[323642221,1714146693721,-2800.0,0.00013,3]
[323642222,1714146693731,-151.0,0.00013,2]
[323642223,1714146693741,-327.877791,0.00013,2]
[323642224,1714146693751,-327.877791,0.00013,2]
[323642225,1714146693760,-327.877791,0.00013,2]
[323642226,1714146693770,-327.877791,0.00013,2]
[323642227,1714146693779,-254.0,0.0001301,2]
[323642228,1714146693789,-500.0,0.00013019,2]
[323642229,1714146693799,-524.75,0.00013019,2]
[323642230,1714146693808,-500.0,0.00013019,2]
[323642231,1714146693817,-500.0,0.00013019,2]
[323642232,1714146693827,-500.0,0.00013019,2]
[323642233,1714146693838,-500.0,0.00013019,2]
[323642234,1714146693847,-912.86,0.00013019,2]
[323642235,1714146693857,-500.0,0.00013019,2]
[323642236,1714146693869,-614.45,0.00013019,2]
[323642237,1714146693879,-831.87,0.00013019,2]
[323642238,1714146693888,-500.0,0.00013019,2]
[323642239,1714146693898,-500.0,0.00013019,2]
[323642240,1714146693907,-285.01366176,0.00013019,2]
[323642241,1714146693917,-500.0,0.00013019,2]
[323642242,1714146693926,-504.04031882,0.00013019,2]
[323642243,1714146693935,-500.0,0.00013019,2]
[323642244,1714146693945,-1074.39,0.00013019,2]
[323642245,1714146693954,-500.0,0.00013019,2]
[323642246,1714146693963,-500.0,0.00013019,2]
[323642247,1714146693974,-504.17659646,0.00013019,2]
[323642248,1714146693983,-500.0,0.00013019,2]
[323642249,1714146693992,-500.0,0.00013019,2]
[323642250,1714146694002,-500.0,0.00013019,2]
[323642251,1714146694012,-500.0,0.00013019,2]
[323642252,1714146694022,-532.82,0.00013019,2]
[323642253,1714146694031,-500.0,0.00013019,2]
[323642254,1714146694041,-500.0,0.00013019,2]
[323642255,1714146694050,-500.0,0.00013019,2]
[323642256,1714146694060,-500.0,0.00013019,2]
[323642257,1714146694069,-773.66,0.00013019,2]
[323642258,1714146694078,-838.97,0.00013019,2]
[323642259,1714146694088,-500.0,0.00013019,2]
[323642260,1714146694097,-671.04,0.00013019,2]
[323642261,1714146694107,-500.0,0.00013019,2]
[323642262,1714146694116,-225.21070131,0.00013019,2]
[323642263,1714146694125,-724.04,0.00013019,2]
[323642264,1714146694135,-500.0,0.00013019,2]
[323642265,1714146694145,-500.0,0.00013019,2]
[323642266,1714146694155,-500.0,0.00013019,2]
[323642267,1714146694165,-659.6,0.00013019,2]
[323642268,1714146694174,-500.0,0.00013019,2]
[323642269,1714146694184,-543.48,0.00013019,2]
[323642270,1714146694194,-605.67,0.00013019,2]
[323642271,1714146694204,-804.0,0.00013019,2]
[323642272,1714146694213,-500.0,0.00013019,2]
[323642273,1714146694224,-500.0,0.00013019,2]
[323642274,1714146694235,-500.0,0.00013019,2]
[323642275,1714146694244,-512.65,0.00013019,2]
[323642276,1714146694254,-500.0,0.00013019,2]
[323642277,1714146694263,-500.0,0.00013019,2]
[323642278,1714146694272,-500.0,0.00013019,2]
[323642279,1714146694282,-500.0,0.00013019,2]
[323642280,1714146694291,-733.06,0.00013019,2]
[323642281,1714146694300,-500.0,0.00013019,2]
[323642282,1714146694310,-577.64,0.00013019,2]
[323642283,1714146694320,-500.0,0.00013019,2]
[323642284,1714146694329,-500.0,0.00013019,2]
[323642285,1714146694339,-553.67120512,0.00013019,2]
[323642286,1714146694349,-584.14,0.00013019,2]
[323642287,1714146694359,-500.0,0.00013019,2]
[323642288,1714146694368,-668.64,0.00013019,2]
[323642289,1714146694378,-535.33,0.00013019,2]
[323642290,1714146694387,-500.0,0.00013019,2]
[323642291,1714146694397,-500.0,0.00013019,2]
[323642292,1714146694408,-500.0,0.00013019,2]
[323642293,1714146694418,-500.0,0.00013019,2]
[323642294,1714146694428,-500.0,0.00013019,2]
[323642295,1714146694437,-500.0,0.00013019,2]
[323642296,1714146694446,-289.05,0.00013019,2]
[323642297,1714146694457,-549.83,0.00013019,2]
[323642298,1714146694469,-500.0,0.00013019,2]
[323642299,1714146694479,-500.0,0.00013019,2]
[323642300,1714146694490,-500.0,0.00013019,2]
[323642301,1714146694499,-500.0,0.00013019,2]
[323642302,1714146694509,-500.0,0.00013019,2]
[323642303,1714146694519,-500.0,0.00013019,2]
[323642304,1714146694528,-228.09,0.00013019,2]
[323642305,1714146694540,-500.0,0.00013019,2]
[323642306,1714146694550,-500.0,0.00013019,2]
[323642307,1714146694561,-500.0,0.00013019,2]
[323642308,1714146694571,-500.0,0.00013019,2]
[323642309,1714146694581,-240.0,0.00013019,2]
[323642310,1714146694590,-4992.95061919,0.0001305,2]
[323642311,1714146694600,-5015.37970179,0.00013127,2]
[323642312,1714146694610,-855.32,0.00013151,2]
[323642313,1714146694619,-828.86,0.00013151,2]
[323642314,1714146694628,-2627.08,0.00013151,2]
[323642315,1714146694638,-2189.23,0.00013151,2]
[323642316,1714146694647,-1824.36,0.00013151,2]
[323642317,1714146694659,-1520.3,0.00013151,2]
[323642318,1714146694668,-1266.92,0.00013151,2]
[323642319,1714146694679,-500.0,0.00013185,2]
[323642320,1714146694689,-644.42,0.00013185,2]
[323642321,1714146694699,-500.0,0.00013186,2]
[323642322,1714146694709,-500.0,0.00013186,2]
[323642323,1714146694719,-500.0,0.00013186,2]
[323642324,1714146694728,-500.0,0.00013186,2]
[323642325,1714146694737,-500.0,0.00013186,2]
[323642326,1714146694747,-500.0,0.00013186,2]
[323642327,1714146694756,-500.0,0.00013186,2]
[323642328,1714146694765,-500.0,0.00013186,2]
[323642329,1714146694775,-500.0,0.00013186,2]
[323642330,1714146694785,-500.0,0.00013186,2]
[323642331,1714146694795,-284.07451957,0.00013186,2]
[323642332,1714146694805,-12541.59,0.00013186,2]
[323642333,1714146694815,-3067.93,0.00013186,2]
[323642334,1714146694824,-683.29,0.00013186,2]
[323642335,1714146694834,-532.8,0.00013186,2]
[323642336,1714146694843,-1060.15,0.00013186,2]
[323642337,1714146694853,-4294.42,0.00013186,2]
[323642338,1714146694862,-500.0,0.00013186,2]
[323642339,1714146694872,-500.0,0.00013186,2]
[323642340,1714146694882,-539.52,0.00013186,2]
[323642341,1714146694891,-500.0,0.00013186,2]
[323642342,1714146694901,-178.78,0.00013186,2]
[323642343,1714146694910,-2839.5,0.00013186,2]
[323642344,1714146694919,-500.0,0.00013186,2]
[323642345,1714146694929,-500.0,0.00013186,2]
[323642346,1714146694938,-594.61,0.00013186,2]
[323642347,1714146694948,-786.04,0.00013186,2]
[323642348,1714146694957,-500.0,0.00013186,2]
[323642349,1714146694967,-633.46,0.00013186,2]
[323642350,1714146694976,-2454.05,0.00013186,2]
[323642351,1714146694986,-500.0,0.00013186,2]
[323642352,1714146694995,-500.0,0.00013186,2]
[323642353,1714146695005,-500.0,0.00013186,2]
[323642354,1714146695015,-556.65,0.00013186,2]
[323642355,1714146695025,-314.79877222,0.00013186,2]
[323642356,1714146695035,-783.76,0.00013186,2]
[323642357,1714146695045,-603.38,0.00013186,2]
[323642358,1714146695055,-1769.72,0.00013186,2]
[323642359,1714146695065,-500.0,0.00013186,2]
[323642360,1714146695075,-541.56,0.00013186,2]
[323642361,1714146695085,-2540.34,0.00013186,2]
[323642362,1714146695095,-591.93,0.00013186,2]
[323642363,1714146695105,-545.47,0.00013186,2]
[323642364,1714146695115,-500.0,0.00013186,2]
[323642365,1714146695125,-500.0,0.00013186,2]
[323642366,1714146695135,-500.0,0.00013186,2]
[323642367,1714146695144,-4729.62,0.00013186,2]
[323642368,1714146695153,-500.0,0.00013186,2]
[323642369,1714146695163,-1995.34,0.00013186,2]
[323642370,1714146695174,-586.34,0.00013186,2]
[323642371,1714146695184,-500.0,0.00013186,2]
[323642372,1714146695194,-500.0,0.00013186,2]
[323642373,1714146695203,-2124.66,0.00013186,2]
[323642374,1714146695212,-3161.41,0.00013186,2]
[323642375,1714146695223,-1952.38,0.00013186,2]
[323642376,1714146695233,-500.0,0.00013186,2]
[323642377,1714146695242,-2807.16,0.00013186,2]
[323642378,1714146695252,-500.0,0.00013186,2]
[323642379,1714146695262,-638.27,0.00013186,2]
[323642380,1714146695271,-500.0,0.00013186,2]
[323642381,1714146695281,-505.18058039,0.00013186,2]
[323642382,1714146695291,-3223.34,0.00013186,2]
[323642383,1714146695301,-680.69,0.00013186,2]
[323642384,1714146695311,-500.0,0.00013186,2]
[323642385,1714146695320,-2296.89,0.00013186,2]
[323642386,1714146695330,-500.0,0.00013186,2]
[323642387,1714146695421,-500.0,0.00013186,2]
[323642388,1714146695432,-2368.71,0.00013186,2]
[323642389,1714146695442,-285.8031198,0.00013186,2]
[323642390,1714146695453,-3149.73,0.00013186,2]
[323642391,1714146695463,-500.0,0.00013186,2]
[323642392,1714146695478,-500.0,0.00013186,2]
[323642393,1714146695488,-7711.79,0.00013186,2]
[323642394,1714146695499,-712.4,0.00013186,2]
[323642395,1714146695510,-2752.21,0.00013186,2]
[323642396,1714146695520,-500.0,0.00013186,2]
[323642397,1714146695530,-1361.6,0.00013186,2]
[323642398,1714146695540,-743.13,0.00013186,2]
[323642399,1714146695553,-500.0,0.00013186,2]
[323642400,1714146695564,-500.0,0.00013186,2]
[323642401,1714146695575,-1414.54,0.00013186,2]
[323642402,1714146695586,-770.5,0.00013186,2]
[323642403,1714146695596,-3239.13,0.00013186,2]
[323642404,1714146695606,-1163.36,0.00013186,2]
[323642405,1714146695617,-6880.92,0.00013186,2]
[323642406,1714146695627,-525.52,0.00013186,2]
[323642407,1714146695637,-500.0,0.00013186,2]
[323642408,1714146695647,-2621.73,0.00013186,2]
[323642409,1714146695657,-2133.22,0.00013186,2]
[323642410,1714146695668,-653.66,0.00013186,2]
[323642411,1714146695678,-1077.73,0.00013186,2]
[323642412,1714146695688,-580.16,0.00013186,2]
[323642413,1714146695698,-514.18,0.00013186,2]
[323642414,1714146695709,-4821.94,0.00013186,2]
[323642415,1714146695723,-2598.62,0.00013186,2]
[323642416,1714146695733,-500.0,0.00013186,2]
[323642417,1714146695742,-500.0,0.00013186,2]
[323642418,1714146695753,-1060.82,0.00013186,2]
[323642419,1714146695762,-500.0,0.00013186,2]
[323642420,1714146695773,-584.82,0.00013186,2]
[323642421,1714146695782,-1830.64,0.00013186,2]
[323642422,1714146695792,-500.0,0.00013186,2]
[323642423,1714146695802,-500.0,0.00013186,2]
[323642424,1714146695811,-1584.6,0.00013186,2]
[323642425,1714146695821,-1347.81,0.00013186,2]
[323642426,1714146695830,-500.0,0.00013186,2]
[323642427,1714146695840,-500.0,0.00013186,2]
[323642428,1714146695850,-5879.51,0.00013186,2]
[323642429,1714146695860,-6325.77,0.00013186,2]
[323642430,1714146695870,-500.0,0.00013186,2]
[323642431,1714146695881,-7205.06,0.00013186,2]
[323642432,1714146695891,-1130.16,0.00013186,2]
[323642433,1714146695903,-4293.14,0.00013186,2]
[323642434,1714146695913,-500.0,0.00013186,2]
[323642435,1714146695923,-500.0,0.00013186,2]
[323642436,1714146695934,-503.44365,0.00013186,2]
[323642437,1714146695944,-4451.04,0.00013186,2]
[323642438,1714146695955,-500.0,0.00013186,2]
[323642439,1714146695964,-813.86,0.00013186,2]
[323642440,1714146695975,-500.0,0.00013186,2]
[323642441,1714146695984,-500.0,0.00013187,2]
[323642442,1714146695993,-500.0,0.00013187,2]
[323642443,1714146696002,-500.0,0.00013187,2]
[323642444,1714146696012,-500.0,0.00013187,2]
[323642445,1714146696021,-500.0,0.00013187,2]
[323642446,1714146696030,-500.0,0.00013187,2]
[323642447,1714146696039,-500.0,0.00013187,2]
[323642448,1714146696049,-586.06,0.00013187,2]
[323642449,1714146696058,-500.0,0.00013187,2]
[323642450,1714146696068,-261.3375597,0.00013187,2]
[323642451,1714146696077,-551.67,0.00013187,2]
[323642452,1714146696086,-500.0,0.00013187,2]
[323642453,1714146696095,-536.41,0.00013187,2]
[323642454,1714146696104,-500.0,0.00013187,2]
[323642455,1714146696114,-504.20605868,0.00013187,2]
[323642456,1714146696123,-245.20148442,0.00013187,2]
[323642457,1714146696133,-500.02,0.00013187,2]
[323642458,1714146696142,-890.43,0.00013187,2]
[323642459,1714146696151,-899.93,0.00013187,2]
[323642460,1714146696160,-500.0,0.00013187,2]
[323642461,1714146696169,-500.0,0.00013187,2]
[323642462,1714146696178,-740.2,0.00013187,2]
[323642463,1714146696187,-669.41,0.00013187,2]
[323642464,1714146696196,-714.54,0.00013187,2]
[323642465,1714146696205,-500.0,0.00013187,2]
[323642466,1714146696214,-703.44,0.00013187,2]
[323642467,1714146696225,-500.0,0.00013187,2]
[323642468,1714146696235,-500.0,0.00013187,2]
[323642469,1714146696244,-1007.49,0.00013187,2]
[323642470,1714146696253,-673.51,0.00013187,2]
[323642471,1714146696262,-500.0,0.00013187,2]
[323642472,1714146696271,-500.0,0.00013187,2]
[323642473,1714146696280,-816.79,0.00013187,2]
[323642474,1714146696289,-500.0,0.00013187,2]
[323642475,1714146696297,-787.38,0.00013187,2]
[323642476,1714146696307,-505.92068112,0.00013187,2]
[323642477,1714146696316,-500.0,0.00013187,2]
[323642478,1714146696326,-976.83,0.00013187,2]
[323642479,1714146696336,-500.0,0.00013187,2]
[323642480,1714146696344,-1809.25,0.00013187,2]
[323642481,1714146696354,-568.44921988,0.00013187,2]
[323642482,1714146696363,-2201.55,0.00013187,2]
[323642483,1714146696372,-500.0,0.00013187,2]
[323642484,1714146696381,-500.0,0.00013187,2]
[323642485,1714146696391,-2475.02,0.00013187,2]
[323642486,1714146696400,-1021.24,0.00013187,2]
[323642487,1714146696410,-906.43,0.00013187,2]
[323642488,1714146696418,-500.0,0.00013187,2]
[323642489,1714146696428,-500.0,0.00013187,2]
[323642490,1714146696437,-1082.39,0.00013187,2]
[323642491,1714146696446,-1734.07,0.00013187,2]
[323642492,1714146696456,-507.5,0.00013187,2]
[323642493,1714146696465,-500.0,0.00013187,2]
[323642494,1714146696480,-500.0,0.00013187,2]
[323642495,1714146696489,-1366.4,0.00013187,2]
[323642496,1714146696499,-500.0,0.00013187,2]
[323642497,1714146696508,-1005.72,0.00013187,2]
[323642498,1714146696518,-500.0,0.00013187,2]
[323642499,1714146696528,-500.0,0.00013187,2]
[323642500,1714146696538,-329.64,0.00013187,2]
[323642501,1714146696550,-500.0,0.00013187,2]
[323642502,1714146696560,-1013.72,0.00013187,2]
[323642503,1714146696569,-988.03,0.00013187,2]
[323642504,1714146696579,-951.02,0.00013187,2]
[323642505,1714146696589,-882.88,0.00013187,2]
[323642506,1714146696599,-513.26,0.00013187,2]
[323642507,1714146696609,-1725.66,0.00013187,2]
[323642508,1714146696618,-500.0,0.00013187,2]
[323642509,1714146696627,-500.0,0.00013187,2]
[323642510,1714146696637,-500.0,0.00013187,2]
[323642511,1714146696647,-1527.71,0.00013187,2]
[323642512,1714146696657,-500.0,0.00013187,2]
[323642513,1714146696667,-682.76,0.00013187,2]
[323642514,1714146696677,-522.14,0.00013187,2]
[323642515,1714146696686,-1626.54,0.00013187,2]
[323642516,1714146696695,-511.7,0.00013187,2]
[323642517,1714146696705,-425.66177434,0.00013187,2]
[323642518,1714146696715,-500.0,0.00013187,2]
[323642519,1714146696727,-500.0,0.00013187,2]
[323642520,1714146696737,-505.77659193,0.00013187,2]
[323642521,1714146696748,-500.0,0.00013187,2]
[323642522,1714146696757,-500.0,0.00013187,2]
[323642523,1714146696767,-500.0,0.00013187,2]
[323642524,1714146696777,-500.0,0.00013187,2]
[323642525,1714146696786,-500.0,0.00013187,2]
[323642526,1714146696796,-500.0,0.00013187,2]
[323642527,1714146696805,-387.06,0.00013187,2]
[323642528,1714146696815,-1328.17,0.00013187,2]
[323642529,1714146696825,-500.0,0.00013187,2]
[323642530,1714146696835,-500.0,0.00013187,2]
[323642531,1714146696844,-500.0,0.00013187,2]
[323642532,1714146696854,-551.92,0.00013187,2]
[323642533,1714146696863,-500.0,0.00013187,2]
[323642534,1714146696873,-500.0,0.00013187,2]
[323642535,1714146696883,-500.0,0.00013187,2]
[323642536,1714146696893,-581.23,0.00013187,2]
[323642537,1714146696903,-500.0,0.00013187,2]
[323642538,1714146696913,-2126.22,0.00013187,2]
[323642539,1714146696923,-1925.01,0.00013187,2]
[323642540,1714146696933,-500.0,0.00013187,2]
[323642541,1714146696942,-544.69,0.00013187,2]
[323642542,1714146696954,-500.0,0.00013187,2]
[323642543,1714146696966,-500.0,0.00013187,2]
[323642544,1714146696981,-500.0,0.00013187,2]
[323642545,1714146696991,-1631.66,0.00013187,2]
[323642546,1714146697000,-500.0,0.00013187,2]
[323642547,1714146697010,-500.0,0.00013187,2]
[323642548,1714146697020,-500.0,0.00013187,2]
[323642549,1714146697030,-1881.98,0.00013187,2]
[323642550,1714146697040,-500.0,0.00013187,2]
[323642551,1714146697050,-500.0,0.00013187,2]
[323642552,1714146697060,-597.71,0.00013187,2]
[323642553,1714146697070,-2029.94,0.00013187,2]
[323642554,1714146697080,-1848.32,0.00013187,2]
[323642555,1714146697090,-500.0,0.00013187,2]
[323642556,1714146697100,-500.0,0.00013187,2]
[323642557,1714146697110,-1370.68,0.00013187,2]
[323642558,1714146697120,-1912.0,0.00013187,2]
[323642559,1714146697130,-661.25,0.00013187,2]
[323642560,1714146697139,-500.0,0.00013187,2]
[323642561,1714146697149,-919.44,0.00013187,2]
[323642562,1714146697159,-500.0,0.00013187,2]
[323642563,1714146697168,-638.29,0.00013187,2]
[323642564,1714146697178,-1171.2,0.00013187,2]
[323642565,1714146697187,-5559.23,0.00013187,2]
[323642566,1714146697197,-500.0,0.00013187,2]
[323642567,1714146697207,-2143.51,0.00013187,2]
[323642568,1714146697217,-7686.77,0.00013187,2]
[323642569,1714146697228,-500.0,0.00013187,2]
[323642570,1714146697238,-500.0,0.00013187,2]
[323642571,1714146697247,-514.45,0.00013187,2]
[323642572,1714146697257,-2569.43,0.00013187,2]
[323642573,1714146697267,-2739.23,0.00013187,2]
[323642574,1714146697277,-500.0,0.00013187,2]
[323642575,1714146697287,-500.0,0.00013187,2]
[323642576,1714146697296,-1792.37,0.00013187,2]
[323642577,1714146697306,-500.0,0.00013187,2]
[323642578,1714146697315,-1653.79,0.00013187,2]
[323642579,1714146697325,-625.93,0.00013187,2]
[323642580,1714146697334,-500.0,0.00013187,2]
[323642581,1714146697344,-500.0,0.00013187,2]
[323642582,1714146697353,-500.0,0.00013187,2]
[323642583,1714146697363,-1471.8,0.00013187,2]
[323642584,1714146697372,-1070.1,0.00013187,2]
[323642585,1714146697382,-4037.45,0.00013187,2]
[323642586,1714146697391,-2650.97,0.00013187,2]
[323642587,1714146697401,-598.19,0.00013187,2]
[323642588,1714146697411,-500.0,0.00013187,2]
[323642589,1714146697421,-4448.95,0.00013187,2]
[323642590,1714146697430,-2695.07,0.00013187,2]
[323642591,1714146697440,-8545.82,0.00013187,2]
[323642592,1714146697449,-500.0,0.00013187,2]
[323642593,1714146697459,-591.25,0.00013187,2]
[323642594,1714146697472,-2042.61,0.00013187,2]
[323642595,1714146697483,-500.0,0.00013187,2]
[323642596,1714146697494,-693.98,0.00013187,2]
[323642597,1714146697504,-3854.6,0.00013187,2]
[323642598,1714146697515,-1203.03,0.00013187,2]
[323642599,1714146697526,-1971.4,0.00013187,2]
[323642600,1714146697536,-500.0,0.00013187,2]
[323642601,1714146697546,-500.0,0.00013187,2]
[323642602,1714146697557,-500.0,0.00013187,2]
[323642603,1714146697568,-540.52,0.00013187,2]
[323642604,1714146697579,-1968.53,0.00013187,2]
[323642605,1714146697589,-500.0,0.00013187,2]
[323642606,1714146697599,-3141.48,0.00013187,2]
[323642607,1714146697609,-1494.75,0.00013187,2]
[323642608,1714146697620,-2509.36,0.00013187,2]
[323642609,1714146697631,-500.92,0.00013187,2]
[323642610,1714146697642,-13276.39,0.00013187,2]
[323642611,1714146697654,-500.0,0.00013187,2]
[323642612,1714146697664,-8273.37,0.00013187,2]
[323642613,1714146697675,-171.39248988,0.00013187,2]
[323642614,1714146697686,-742.66,0.00013187,2]
[323642615,1714146697696,-500.0,0.00013187,2]
[323642616,1714146697707,-500.0,0.00013187,2]
[323642617,1714146697717,-1606.25,0.00013187,2]
[323642618,1714146697730,-1129.91,0.00013187,2]
[323642619,1714146697740,-500.0,0.00013187,2]
[323642620,1714146697751,-500.0,0.00013187,2]
[323642621,1714146697761,-1918.48,0.00013187,2]
[323642622,1714146697772,-2088.24,0.00013187,2]
[323642623,1714146697782,-500.0,0.00013187,2]
[323642624,1714146697792,-500.0,0.00013187,2]
[323642625,1714146697803,-1027.75,0.00013187,2]
[323642626,1714146697814,-500.0,0.00013187,2]